Cogmind - Beta 11 X7 @@@ ROGUE MODE // 2021.09.08 @ 21:53:10 Player: Vectis Result: Destroyed by G-34 Mercenary with Small Laser Performance ------------- Evolutions (1) 500 Regions Visited (3) 600 Robots Destroyed (22) 110 Value Destroyed (413) 413 Prototype IDs (2) 40 Alien Tech Used (0) 0 Bonus (0) 0 TOTAL SCORE: 1663 Bonus ------- None Cogmind --------- Core Integrity 0/400 Matter 300/300 Energy 100/100 System Corruption 31% Temperature Cool (12) Movement Core (1350) Ox26 Location -9/Materials Parts ------- > --- POWER (1) -------- (None) > --- PROPULSION (2) --- (None) > --- UTILITY (4) ------ Huge Storage Unit > --- WEAPON (2) ------- (None) > --- INVENTORY (25) --- Ion Engine Fission Core Light Treads Light Treads Wheel Compact Wheel High-capacity Matter Pod (200) Light Armor Plating Light Armor Plating Hacking Suite EM Pulse Gun Particle Gun Particle Gun Particle Cannon Particle Cannon Assault Rifle Assault Rifle Light Assault Rifle Improved Light Cannon Improved Light Cannon Improved Light Cannon Improved Light Cannon Grenade Launcher Rocket Launcher Mining Laser Peak State ------------ > --- POWER ------------ Light Nuclear Core > --- PROPULSION ------- Light Treads Light Treads > --- UTILITY ---------- Huge Storage Unit Light Armor Plating > --- WEAPON ----------- Particle Cannon Bore Cannon > --- INVENTORY -------- Ion Engine Fission Core Light Treads Light Treads Wheel Compact Wheel High-capacity Matter Pod Light Armor Plating Light Armor Plating Hacking Suite EM Pulse Gun Particle Gun Particle Gun Particle Cannon Assault Rifle Assault Rifle Assault Rifle Light Assault Rifle Light Cannon Improved Light Cannon Improved Light Cannon Improved Light Cannon Improved Light Cannon Rocket Launcher Mining Laser [Rating: 17] Favorites ----------- Power Light Nuclear Core Engine Light Ion Engine Power Core Light Nuclear Core Propulsion Light Treads Treads Light Treads Leg Aluminum Leg Utility Huge Storage Unit Storage Huge Storage Unit Protection Light Armor Plating Weapon Assault Rifle Energy Gun Particle Gun Energy Cannon Particle Cannon Ballistic Gun Assault Rifle Ballistic Cannon Bore Cannon Special Weapon Mining Laser Build | -11 -10 -10 -9 ------- Run | Scr Mat Min Mat Slots Evolved 2 | . . . 2 Power . | . . . . Propulsion . | . . . . Utility 2 | . . . 2 Weapon . | . . . . Parts Attached 26 | . 22 4 . Power 4 | . 4 . . Engine 3 | . 3 . . Core 1 | . 1 . . Reactor . | . . . . Propulsion 7 | . 7 . . Treads 7 | . 7 . . Leg . | . . . . Wheel . | . . . . Hover . | . . . . Flight . | . . . . Utility 6 | . 6 . . Device . | . . . . Storage 4 | . 4 . . Processor . | . . . . Hackware . | . . . . Protection 2 | . 2 . . Artifact . | . . . . Weapon 9 | . 5 4 . Energy Gun 1 | . 1 . . Energy Cannon 3 | . 2 1 . Ballistic Gun 2 | . 1 1 . Ballistic Cannon 1 | . . 1 . Launcher . | . . . . Special Weapon 2 | . 1 1 . Impact Weapon . | . . . . Slashing Weapon . | . . . . Piercing Weapon . | . . . . Special Melee Weapon . | . . . . Unidentified Prototypes . | . . . . Parts Lost 8 | . 3 . 5 Power 3 | . 2 . 1 Propulsion 2 | . . . 2 Utility 1 | . . . 1 Weapon 2 | . 1 . 1 Highest Loss Streak 5 | . 2 . 5 Average Slot Usage (%) 85 | . 79 100 61 Engine 4 | . 7 . . Core 7 | . 3 14 7 Treads 26 | . 26 28 17 Storage 13 | . 13 14 11 Protection 8 | . 4 14 6 Energy Cannon 4 | . 6 1 . Ballistic Gun 13 | . 13 13 8 Ballistic Cannon 4 | . . 13 9 Naked Turns 2 | . 2 . . Heaviest Build 99 | 11 96 99 99 Greatest Support 40 | 20 40 40 40 Greatest Overweight (x) 2 | . 2 2 2 Average Overweight (x) 1 | . . 2 2 Largest Inventory Capacity 25 | . 25 25 25 Average Capacity 20 | . 18 25 25 Most Carried 25 | . 25 25 25 Average Carried 18 | . 13 24 25 Final Capacity 25 | 8 25 25 25 Final Carried 25 | 6 25 25 25 Class Distribution -------------------- 100% | Mutant Dominant Class ---------------- Mutant | -10/Materials Mutant | -10/Mines Mutant | -9/Materials Resources | -11 -10 -10 -9 ----------- Run | Scr Mat Min Mat Matter Collected 971 | 200 571 200 . Remotely . | . . . . Salvage Created 834 | . 710 124 . Parts 40 | . 34 6 . Haulers Intercepted 1 | . 1 . . Recyclers Shooed 5 | . 4 1 . Parts Field Recycled . | . . . . Retrieved Matter . | . . . . Parts Self-Destructed . | . . . . Prevented . | . . . . Kills | -11 -10 -10 -9 ------- Run | Scr Mat Min Mat Combat Hostiles Destroyed 14 | . 7 7 . Guns 10 | . 7 3 . Cannons 4 | . . 4 . Classes Destroyed 8 | . 6 2 . Worker 2 | . 2 . . Hauler 1 | . 1 . . Recycler 5 | . 4 1 . Operator 1 | . 1 . . Watcher 1 | . 1 . . Swarmer 5 | . . 5 . Grunt 7 | . 7 . . Assembled 2 | . . 2 . Best Kill Streak 5 | . 5 3 . Combat Bots Only 3 | . 2 3 . Max Kills in Single Turn 2 | . 2 1 . Gunslinging . | . . . . Exploded . | . . . . Melee . | . . . . Uniques/NPCs Destroyed . | . . . . Combat | -11 -10 -10 -9 -------- Run | Scr Mat Min Mat Damage Taken 1787 | . 587 261 939 Core 494 | . 67 16 411 Absorbed by Shields . | . . . . Core Remaining (%) 83 | 100 . 66 . Volleys Fired 81 | . 62 18 1 Largest 2 | . 2 2 2 Hottest 136 | . 136 136 77 Shots Fired 155 | . 118 35 2 Gun 129 | . 112 16 1 Cannon 23 | . 4 18 1 Launcher . | . . . . Special 3 | . 2 1 . Kinetic 133 | . 99 32 2 Thermal 22 | . 19 3 . Explosive . | . . . . Electromagnetic . | . . . . Robot Hit Streak 13 | . 13 4 . Robot Miss Streak 5 | . 5 4 2 Penetration Max . | . . . . Secondary Targets 1 | . 1 . . Max Gunslinging Chain 1 | . 1 . . Shots Hit Robots 94 | . 79 15 . Core Hits 42 | . 35 7 . Critical Kills 2 | . . 2 . Critical Parts Destroyed 2 | . . 2 . Critical Strikes 4 | . . 4 . Destroy 4 | . . 4 . Melee Attacks . | . . . . Impact . | . . . . Slashing . | . . . . Piercing . | . . . . Sneak Attacks . | . . . . Combat Hostiles . | . . . . Follow-up Attacks . | . . . . Damage Inflicted 1484 | . 1093 332 59 Guns 971 | . 849 122 . Cannons 232 | . 41 191 . Explosions 170 | . 170 . . Melee . | . . . . Ramming 111 | . 33 19 59 Kinetic 931 | . 660 271 . Thermal 272 | . 230 42 . Explosive 170 | . 170 . . Electromagnetic . | . . . . Impact . | . . . . Slashing . | . . . . Piercing . | . . . . Highest Corruption 31 | . 1 1 31 Average Corruption 1 | . 1 1 20 Corruption Purged . | . . . . Effects 29 | . 15 5 9 Message Errors 10 | . 5 3 2 Matter Fused 2 | . . . 2 Heat Flow Errors 1 | . . . 1 Energy Discharges 2 | . 2 . . Parts Rejected 1 | . . . 1 Data Loss (minor) 10 | . 7 2 1 Alerts 2 | . . . 2 Weapon Failures 1 | . 1 . . Overload Shots . | . . . . Overflow Damage 3 | . 3 . . Projectiles . | . . . . Explosions 3 | . 3 . . Melee . | . . . . Knockbacks 1 | . . 1 . Impact 1 | . . 1 . Kinetic . | . . . . Secondary . | . . . . Self-Inflicted Damage 59 | . . . 59 Shots . | . . . . Rammed 21 | . 19 2 . Targets Rammed 22 | . 19 3 . Kicked . | . . . . Crushed 1 | . . 1 . Highest Temperature 270 | . 160 270 93 Average Temperature 60 | . 40 86 34 Received Heat Transfer 741 | . 339 . 402 Siege Activations . | . . . . Robots Corrupted . | . . . . Combat Hostiles . | . . . . Parts Fried . | . . . . Impact Corruptions . | . . . . Robots Melted . | . . . . Combat Hostiles . | . . . . Parts Melted . | . . . . Heat Transferred 592 | . 518 74 . Parts Sabotaged . | . . . . Parts Stolen . | . . . . Parts Stripped . | . . . . Power Chain Reactions . | . . . . Missiles Intercepted . | . . . . Alert | -11 -10 -10 -9 ------- Run | Scr Mat Min Mat Peak Influence 99 | . 99 85 15 Initial 1 | . . 1 . Average 23 | . 27 20 9 Maximum Alert Level . | . . . . Low Security (%) 100 | . 100 100 100 Level 1 . | . . . . Level 2 . | . . . . Level 3 . | . . . . Level 4 . | . . . . Level 5 . | . . . . High Security . | . . . . Max Security . | . . . . Squads Dispatched 2 | . 1 . 1 Investigation . | . . . . Extermination . | . . . . Reinforcement 2 | . 1 . 1 Assault . | . . . . Garrison . | . . . . Intercept . | . . . . Construction Impeded . | . . . . Haulers Reinforced . | . . . . Active Scanning Responses . | . . . . Cargo Convoy Interrupts . | . . . . Stealth | -11 -10 -10 -9 --------- Run | Scr Mat Min Mat Distress Signals 2 | . 2 . . Communications Jammed . | . . . . Distress Signals . | . . . . Times Spotted 51 | . 39 9 3 Peak Tracking Total 3 | . 3 3 2 Tactical Retreats 2 | . . 2 . Traps | -11 -10 -10 -9 ------- Run | Scr Mat Min Mat Traps Triggered 3 | . 3 . . Indirectly . | . . . . Trap Hack Attempts . | . . . . Triggered . | . . . . Disarmed . | . . . . Reprogrammed . | . . . . Reused . | . . . . Traps Extracted . | . . . . Installed . | . . . . Triggered . | . . . . Machines | -11 -10 -10 -9 ---------- Run | Scr Mat Min Mat Machines Disabled 2 | . 1 1 . Max in Single Turn 1 | . 1 1 . Machines Sabotaged . | . . . . Garrisons Compromised . | . . . . Overloaded Fab Kills . | . . . . Fab Network Shutdowns . | . . . . Hacking | -11 -10 -10 -9 --------- Run | Scr Mat Min Mat Machines Accessed 8 | . 8 . . Terminals 6 | . 6 . . Fabricators . | . . . . Repair Stations 1 | . 1 . . Recycling Units 1 | . 1 . . Scanalyzers . | . . . . Garrison Access . | . . . . Total Hacks 24 | . 24 . . Successful 18 | . 18 . . Failed 5 | . 5 . . Catastrophic . | . . . . Database Lockouts 1 | . 1 . . Manual 14 | . 14 . . Terminals 16 | . 16 . . Fabricators . | . . . . Repair Stations 4 | . 4 . . Recycling Units 4 | . 4 . . Scanalyzers . | . . . . Garrison Access . | . . . . Terminal Hacks 5 | . 5 . . Robot Analysis 2 | . 2 . . Prototype ID Bank 1 | . 1 . . Zone Layout 2 | . 2 . . Fabricator Hacks . | . . . . Repair Station Hacks 4 | . 4 . . Scan Component 2 | . 2 . . Repair 2 | . 2 . . Recycling Unit Hacks 1 | . 1 . . Retrieve Components 1 | . 1 . . Scanalyzer . | . . . . Garrison Access Hacks . | . . . . Unauthorized Hacks 8 | . 8 . . Terminals 6 | . 6 . . Track 3 | . 3 . . Botnet 2 | . 2 . . Operators 1 | . 1 . . Fabricators . | . . . . Repair Stations . | . . . . Recycling Units 2 | . 2 . . Reject 1 | . 1 . . Mask 1 | . 1 . . Scanalyzers . | . . . . Garrison Access . | . . . . Data Cores Recovered . | . . . . Used . | . . . . Hacking Detections 6 | . 6 . . Full Trace Events . | . . . . Feedback Events . | . . . . Feedback Blocked . | . . . . Robot Schematics Acquired . | . . . . Robots Built . | . . . . Matter . | . . . . Time . | . . . . Total Robot Build Rating . | . . . . Part Schematics Acquired . | . . . . Parts Built . | . . . . Matter . | . . . . Time . | . . . . Total Part Build Rating . | . . . . Parts Repaired 2 | . 2 . . Time 52 | . 52 . . Parts Recycled . | . . . . Recycled Matter . | . . . . Retrieved Matter . | . . . . Retrieved Components 4 | . 4 . . Parts Scanalyzed . | . . . . Part Schematics Acquired . | . . . . Parts Damaged . | . . . . Bothacking | -11 -10 -10 -9 ------------ Run | Scr Mat Min Mat Used RIF Installer . | . . . . Robots Hacked . | . . . . Non-combat . | . . . . Combat . | . . . . Robot Hacks Applied . | . . . . Relay Couplers Released . | . . . . Robots Rewired . | . . . . Allies Hacked . | . . . . Hacks Repelled . | . . . . Allies | -11 -10 -10 -9 -------- Run | Scr Mat Min Mat Total Allies . | . . . . Largest Group . | . . . . Highest-Rated Group . | . . . . Highest-Rated Ally . | . . . . Total Orders . | . . . . Ally Attacks . | . . . . Total Damage . | . . . . Kills . | . . . . Allies Corrupted . | . . . . Allies Melted . | . . . . Intel | -11 -10 -10 -9 ------- Run | Scr Mat Min Mat Robot Analysis Total 2 | . 2 . . Derelict Logs Recovered 2 | . . 2 . Drone Launches . | . . . . Drone Recoveries . | . . . . Exploration | -11 -10 -10 -9 ------------- Run | Scr Mat Min Mat Turns Passed 5807 | . 3557 2004 246 Spaces Moved 1847 | 1 1310 523 13 Core 148 | . 148 . . Treads 1698 | . 1162 523 13 Legs 1 | 1 . . . Wheels . | . . . . Hover . | . . . . Flight . | . . . . Fastest Speed 50 | 120 50 360 360 Average Speed 258 | 120 217 360 360 Slowest Speed 360 | 120 360 360 360 Overloaded Moves . | . . . . Propulsion Burnouts . | . . . . Robots Hopped . | . . . . Cave-ins Triggered . | . . . . Exploration Rate (%) 48 | 2 92 98 1 Regions Visited 3 Branch Regions 1 Pre-discovered Areas . | . . . . Known Exits Taken . | . . . . Unknown Exits Taken 3 | 1 1 1 . Scrap Searched 1 | . . 1 . Spaces Dug 3 | . 2 1 . Terrain Destroyed 12 | . 2 10 . Melee . | . . . . Projectile 12 | . 2 10 . AOE . | . . . . Terrain Rammed 21 | . . . 21 Walls Destroyed . | . . . . Machines Disabled . | . . . . Actions | -11 -10 -10 -9 --------- Run | Scr Mat Min Mat Total 2516 | . 1878 603 35 Wait 465 | . 419 46 . Move 1844 | . 1309 522 13 Hop . | . . . . Pick Up 43 | . 38 5 . Fast Attach 14 | . 14 . . Attach 3 | . 3 . . Detach . | . . . . Swap 9 | . 5 4 . Drop 14 | . 9 5 . Fire 81 | . 62 18 1 Melee . | . . . . Ram 21 | . . . 21 Kick . | . . . . Crush 22 | . 19 3 . Escape Stasis . | . . . . Rewire . | . . . . Trap . | . . . . Miscellaneous . | . . . . Route ------- -11/Scrapyard -10/Materials (discovered 3 exits: [*Mat x2] / [*Min]) -10/Mines (discovered 2 exits: [*Mat x2]) -9/Materials History --------- Turn | Location | Event 1 | -11/Scrapyard | Discovered new exit (range 0) 1 | -11/Scrapyard | Entered Materials 222 | -10/Materials | Central database locked down 304 | -10/Materials | Discovered new exit (range 14) 315 | -10/Materials | Build established: Mutant 587 | -10/Materials | Discovered new exit (range 12) 1773 | -10/Materials | Discovered new exit (range 9) 3302 | -10/Materials | Repaired Lgt. Treads 3330 | -10/Materials | Repaired Lgt. Treads 3558 | -10/Materials | Entered Mines 3559 | -10/Mines | Assembled infested the area 3564 | -10/Mines | Assisted by a Guerilla fighting off Assembled 3565 | -10/Mines | Received a Rocket Launcher from a helpful Derelict 4219 | -10/Mines | Discovered new exit (range 9) 5020 | -10/Mines | Learned Materials stockpile data 5524 | -10/Mines | Discovered new exit (range 10) 5562 | -10/Mines | Entered Materials 5562 | -9/Materials | Evolved 2 slots: Utility x2 5637 | -9/Materials | System corruption reached 10% 5770 | -9/Materials | Core integrity fell below 50% 5786 | -9/Materials | System corruption reached 30% 5794 | -9/Materials | Lost 5 parts (1p2n1u1w) 5795 | -9/Materials | Core integrity fell below 20% 5808 | -9/Materials | Destroyed by G-34 Mercenary with Small Laser Last Messages --------------- 05741_ Slammed into Wall. 05741_ Destabilizing: System corrupted (+2). 05744_ 4BVKQ|Y&FTH:XPU0M YV2|X1XXPUS 05752_ Broken Assault Rifle destroyed. 05756_ Slammed into Wall. 05756_ Destabilizing: Core damaged (-20). 05758_ Broken Lgt. Treads destroyed. 05763_ System corrupted: Broken Bore Cannon rejected. 05763_ K-01 Serf collects debris. 05763_ Broken Lgt. Treads destroyed. 05771_ Slammed into Wall. 05771_ Destabilizing: Core damaged (-20). 05771_ Destabilizing: System corrupted (+2). 05776_ R-06 Scavenger collects Broken Bore Cannon. 05778_ System corrupted: IFF burst signal emitted. 05785_ Slammed into Wall. 05785_ Destabilizing: System corrupted (+2). 05793_ System corrupted: Heat flow error (+121). 05798_ Slammed into Wall. 05808_ System corrupted: Component data lost. Map ----- +----------------------------------------------------+ | ?????????????????????????????????????? | | ?????????????????????????????????????? | | ?????????????????????????????????????? | | ?????????????????????????????????????? | | ?????????????????????????????????????? | | ?????????????????????????????????????? | | ?????????????????????????????????????? | | ?????????????????????????????????????? | | ?????????????????????????????????????? | | ?????????????????????????????????????? | | ?????????????????????????????????????? | | ?????????????????????????????????????? | | ?????????????????????????????????????? | | ??????????????!??????????????????????? | | ?????????????????????????????????????? | | ?????????????????????????????????????? | | ?????????????????????????????????????? | | ?????????????????????????????????????? | | ?????????????????????????????????????? | | ?????????????????????????????????????? | | ?????????????????????????????????????? | | ?????????????????????????????????????? | | ??????????????????????## #???????????? | | ????????????######## ###?????????? | | ????????????# T ?????????? | | ????????????#@g "" ??????????? | | ????????????# g ????????? | | ????????????####+### ###?????????? | | ????????????????? ???+###???????????? | | ?????????????????? #?????????????????? | | ?????????????????????????????????????? | | ?????????????????????????????????????? | | ?????????????????????????????????????? | | ?????????????????????????????????????? | | ?????????????????????????????????????? | | ?????????????????????????????????????? | | ?????????????????????????????????????? | | ?????????????????????????????????????? | | ?????????????????????????????????????? | | ?[???????????????????????????????????? | | ?????????????????????????????????????? | | ?????????????????????????????????????? | | ?????????????????????????????????????? | | ?????????????????????????????????????? | | ?????????????????????????????????????? | | ??]??????????????????????????????????? | | ?????????????????????????????????????? | | ?????????????????????????????????????? | | ?????????????????????????????????????? | | ?????????????????????????????????????? | +----------------------------------------------------+ Best States ------------- Heat Dissipation 28 Energy Generation 14 Energy Capacity 160 Matter Stores 300 Matter Capacity 300 Sight Range 16 Terrain Scan Density 10 Armor Coverage 150 Evasion (%) 50 Recoil Reduction 2 Item Schematics ----------------- None Robot Schematics ------------------ None Fabricated ------------ Nothing Alien Tech Used ----------------- None Achievements -------------- None Challenges ------------ None Game ------ Seed GuidanceChipMagmablaster Manual? 0 Play Time 00:20:52 Cumulative 299.8 hours Start 2021.09.08 @ 21:23:31 End 2021.09.08 @ 21:53:10 Sessions 1 Manual Loads 0 Difficulty Rogue Special Mode None Game No. 133 Rogue 133 Adventurer 0 Explorer 0 Win Type - Total 12 Types 10/0/0/1/0/1/0/0/0 Lore% 84 Gallery% 86 Achievement% 76 Wizard Run 0 Options --------- ASCII 0 Keyboard 0 Movement Numpad Keybinds 0 Fullscreen 2 Font 18/Smallcaps Map View 76x50 Tactical HUD 1 Map Filters NONE Filters NONE Steam 1 RUN: 27cf78ef-59b3-4a56-8a4d-63b432b48678